fUST/lending_fUST_20250309
["ID","MTS","AMOUNT","RATE_DAILY","PERIOD"]
[355711430,1741495838987,-500.0,0.00045673,10]
[355711431,1741495838997,-507.8262614,0.00045673,10]
[355711432,1741495839008,-500.0,0.00045673,10]
[355711433,1741495839017,-500.93792077,0.00045673,10]
[355711434,1741495839027,-504.35516289,0.00045673,10]
[355711435,1741495839037,-500.0,0.00045673,10]
[355711436,1741495839047,-502.58865896,0.00045673,10]
[355711437,1741495839057,-500.0,0.00045673,10]
[355711438,1741495839066,-500.0,0.00045673,10]
[355711439,1741495839076,-500.0,0.00045673,10]
[355711440,1741495839086,-221.64491523,0.00045673,10]
[355711441,1741495839096,-500.0,0.00045673,10]
[355711442,1741495839105,-501.25888133,0.00045673,10]
[355711443,1741495839116,-500.0,0.00045673,10]
[355711444,1741495839125,-501.19077754,0.00045673,10]
[355711445,1741495839135,-501.75861921,0.00045673,10]
[355711446,1741495839144,-250.98749992,0.00045673,10]
[355711447,1741495839155,-504.8769724,0.00045673,10]
[355711448,1741495839165,-489.61672223,0.00045673,10]
[355711449,1741495839174,-500.0,0.00045673,2]
[355711450,1741495839185,-500.0,0.00045673,10]
[355711451,1741495839197,-507.76961816,0.00045673,10]
[355711452,1741495839207,-500.0,0.00045673,10]
[355711453,1741495839216,-500.0,0.00045673,10]
[355711454,1741495839225,-500.0,0.00045673,10]
[355711455,1741495839235,-500.0999027,0.00045673,10]
[355711456,1741495839246,-152.75560034,0.00045673,3]
[355711457,1741495839255,-500.0,0.00045673,10]
[355711458,1741495839264,-500.0,0.00045673,2]
[355711459,1741495839274,-503.16555725,0.00045673,10]
[355711460,1741495839284,-500.0,0.00045673,10]
[355711461,1741495839294,-500.0,0.00045673,10]
[355711462,1741495839304,-155.88441634,0.00045673,10]
[355711463,1741495839314,-151.0,0.00045673,2]
[355711464,1741495839323,-222000.0,0.000457,2]
[355711465,1741495839333,-151.0,0.000457,120]
[355711466,1741495839343,-151.0,0.000457,120]
[355711467,1741495839352,-151.0,0.000457,120]
[355711468,1741495839363,-151.0,0.000457,120]
[355711469,1741495839374,-237.538368,0.000457,120]
[355711470,1741495839383,-281.856961,0.000457,120]
[355711471,1741495839393,-281.856961,0.000457,120]
[355711472,1741495839404,-641.450401,0.000457,120]
[355711473,1741495839414,-641.450401,0.000457,120]
[355711474,1741495839423,-151.0,0.000457,120]
[355711475,1741495839433,-324.2,0.00045789,30]
[355711476,1741495839442,-2000.0,0.0004579,2]
[355711477,1741495839452,-264.04204093,0.0004588,120]
[355711478,1741495839462,-500.0,0.00045946,120]
[355711479,1741495839471,-602.88979095,0.0004598,120]
[355711480,1741495839480,-50401.044872,0.0004598,7]
[355711481,1741495839489,-200.0,0.00046,120]
[355711482,1741495839499,-999.0,0.0004611,120]
[355711483,1741495839508,-3734.70837952,0.00046136,28]
[355711484,1741495839518,-1000.0,0.00046575,120]
[355711485,1741495839528,-664.43,0.00046575,120]
[355711486,1741495839537,-664.43,0.00046575,120]
[355711487,1741495839546,-664.43,0.00046575,120]
[355711488,1741495839556,-664.43,0.00046575,120]
[355711489,1741495839565,-664.43,0.00046575,120]
[355711490,1741495839575,-664.43,0.00046575,120]
[355711491,1741495839585,-664.43,0.00046575,120]
[355711492,1741495839594,-664.43,0.00046575,120]
[355711493,1741495839604,-664.43,0.00046575,120]
[355711494,1741495839614,-664.43,0.00046575,120]
[355711495,1741495839623,-664.43,0.00046575,120]
[355711496,1741495839633,-664.43,0.00046575,120]
[355711497,1741495839642,-664.43,0.00046575,120]
[355711498,1741495839652,-664.43,0.00046575,120]
[355711499,1741495839662,-664.43,0.00046575,120]
[355711500,1741495839671,-664.43,0.00046575,120]
[355711501,1741495839687,-664.43,0.00046575,120]
[355711502,1741495839696,-664.43,0.00046575,120]
[355711503,1741495839706,-664.43,0.00046575,120]
[355711504,1741495839716,-664.43,0.00046575,120]
[355711505,1741495839725,-664.43,0.00046575,120]
[355711506,1741495839735,-664.43,0.00046575,120]
[355711507,1741495839745,-664.43,0.00046575,120]
[355711508,1741495839754,-664.61185354,0.00046575,120]
[355711509,1741495839763,-5000.0,0.00046575,10]
[355711510,1741495839773,-1000.0,0.00046602,120]
[355711511,1741495839782,-500.0,0.00046604,120]
[355711512,1741495839791,-1000.0,0.0004663,120]
[355711513,1741495839801,-1000.0,0.00046657,120]
[355711514,1741495839810,-1030.53436079,0.00046684,120]
[355711515,1741495839820,-167.900701,0.00046857,2]
[355711516,1741495839830,-866.48,0.00046932,120]
[355711517,1741495839839,-160.0,0.00047047,3]
[355711518,1741495839848,-324.2,0.00047159,30]
[355711519,1741495839858,-500.0,0.00047261,120]
[355711520,1741495839873,-500.0,0.00047919,120]
[355711521,1741495839882,-167.900701,0.00047955,2]
[355711522,1741495839892,-1605.0173601,0.00047977,4]
[355711523,1741495839902,-6260.54849841,0.00048,120]
[355711524,1741495839912,-1000.0,0.00048,30]
[355711525,1741495839922,-609.19949979,0.0004809,2]
[355711526,1741495839932,-324.2,0.00048529,30]
[355711527,1741495839942,-500.0,0.00048576,120]
[355711528,1741495839952,-200.0,0.000486,120]
[355711529,1741495839961,-500.0,0.00048654,97]
[355711530,1741495839971,-500.0,0.00048754,90]
[355711531,1741495839981,-151.0,0.0004878,120]
[355711532,1741495839990,-151.0,0.0004878,120]
[355711533,1741495840000,-151.0,0.0004878,120]
[355711534,1741495840010,-151.0,0.0004878,120]
[355711535,1741495840020,-151.0,0.0004878,120]
[355711536,1741495840030,-151.0,0.0004878,120]
[355711537,1741495840040,-151.0,0.0004878,120]
[355711539,1741495840050,-151.0,0.0004878,120]
[355711540,1741495840059,-281.856961,0.0004878,120]
[355711541,1741495840069,-281.856961,0.0004878,120]
[355711542,1741495840079,-641.450401,0.0004878,120]
[355711543,1741495840088,-641.450401,0.0004878,120]
[355711544,1741495840098,-500.0,0.00048854,92]
[355711545,1741495840108,-500.0,0.00048868,31]
[355711546,1741495840117,-346.88381754,0.00048868,120]
[355711547,1741495840127,-395.50608194,0.00048868,31]
[355711548,1741495840137,-500.0,0.00048868,120]
[355711549,1741495840147,-302.01643818,0.00048868,2]
[355711550,1741495840157,-2000000.0,0.00048869,4]
[355711551,1741495840166,-50089.0,0.0004887,120]
[355711552,1741495840176,-151.0,0.0004887,120]
[355711553,1741495840186,-5460.88825047,0.00048899,2]
[355711554,1741495840198,-500.0,0.00048954,94]
[355711555,1741495840207,-519.86499018,0.00048973,10]
[355711556,1741495840217,-150.0,0.00048973,3]
[355711557,1741495840227,-150.0,0.00048973,10]
[355711558,1741495840331,-843.570749,0.0004898,120]
[355711559,1741495840343,-843.570749,0.0004898,120]
[355711560,1741495840357,-151.0,0.0004898,120]
[355711561,1741495840369,-155.586339,0.0004899,120]
[355711562,1741495840379,-1053.954777,0.0004899,120]
[355711563,1741495840388,-1053.954777,0.0004899,120]
[355711564,1741495840398,-151.0,0.0004899,120]
[355711565,1741495840407,-444.05478,0.0004899,120]
[355711566,1741495840416,-444.05478,0.0004899,120]
[355711567,1741495840426,-151.0,0.0004899,120]
[355711568,1741495840435,-151.0,0.0004899,120]
[355711569,1741495840444,-151.0,0.0004899,120]
[355711570,1741495840454,-403.288954,0.0004899,120]
[355711571,1741495840463,-403.288954,0.0004899,120]
[355711572,1741495840474,-20000.0,0.00049,30]
[355711573,1741495840483,-8607.85317864,0.00049,120]
[355711574,1741495840493,-1000.0,0.00049,120]
[355711575,1741495840503,-276.73,0.00049,120]
[355711576,1741495840512,-243.807185,0.00049,120]
[355711577,1741495840522,-243.807185,0.00049,120]
[355711578,1741495840532,-243.807185,0.00049,120]
[355711579,1741495840542,-243.807185,0.00049,120]
[355711580,1741495840551,-151.0,0.00049,120]
[355711581,1741495840561,-151.0,0.00049,120]
[355711582,1741495840570,-238.228071,0.00049,120]
[355711583,1741495840580,-151.0,0.00049,120]
[355711584,1741495840590,-151.0,0.00049,120]
[355711585,1741495840604,-151.0,0.00049,120]
[355711586,1741495840615,-151.0,0.00049,120]
[355711587,1741495840625,-151.0,0.00049,120]
[355711588,1741495840637,-151.0,0.00049,120]
[355711589,1741495840651,-162.266252,0.00049,120]
[355711590,1741495840661,-151.0,0.00049,120]
[355711591,1741495840671,-151.0,0.00049,120]
[355711592,1741495840681,-151.0,0.00049,120]
[355711593,1741495840691,-151.0,0.00049,120]
[355711594,1741495840701,-151.0,0.00049,120]
[355711595,1741495840711,-151.0,0.00049,120]
[355711596,1741495840720,-233.451027,0.00049,120]
[355711597,1741495840729,-233.451027,0.00049,120]
[355711598,1741495840739,-233.451027,0.00049,120]
[355711599,1741495840748,-290.739548,0.00049,120]
[355711600,1741495840757,-290.739548,0.00049,120]
[355711601,1741495840766,-290.739548,0.00049,120]
[355711602,1741495840776,-233.451027,0.00049,120]
[355711603,1741495840785,-233.451027,0.00049,120]
[355711604,1741495840795,-233.451027,0.00049,120]
[355711605,1741495840804,-290.739548,0.00049,120]
[355711606,1741495840813,-290.739548,0.00049,120]
[355711607,1741495840824,-290.739548,0.00049,120]
[355711608,1741495840834,-151.0,0.00049,120]
[355711610,1741495840843,-151.0,0.00049,120]
[355711611,1741495840853,-151.653595,0.00049,120]
[355711612,1741495840862,-151.0,0.00049,120]
[355711613,1741495840872,-151.0,0.00049,120]
[355711614,1741495840882,-151.0,0.00049,120]
[355711615,1741495840891,-441.989868,0.00049,30]
[355711616,1741495840901,-441.989868,0.00049,30]
[355711617,1741495840911,-441.989868,0.00049,30]
[355711618,1741495840920,-441.989868,0.00049,30]
[355711619,1741495840929,-441.989868,0.00049,30]
[355711620,1741495840939,-441.989868,0.00049,30]
[355711621,1741495840949,-151.0,0.00049,120]
[355711622,1741495840959,-151.0,0.00049,120]
[355711623,1741495840970,-151.0,0.00049,120]
[355711624,1741495840979,-152.541252,0.00049,120]
[355711625,1741495840989,-152.541252,0.00049,120]
[355711626,1741495840998,-152.541252,0.00049,120]
[355711627,1741495841007,-152.541252,0.00049,120]
[355711628,1741495841017,-151.0,0.00049,120]
[355711629,1741495841027,-151.0,0.00049,120]
[355711630,1741495841036,-154.148902,0.00049,120]
[355711632,1741495841045,-162.3022402,0.00049,120]
[355711634,1741495841054,-359.546202,0.00049,120]
[355711635,1741495841064,-359.546202,0.00049,120]
[355711636,1741495841073,-815.6068,0.00049,120]
[355711637,1741495841083,-815.6068,0.00049,120]
[355711638,1741495841092,-815.6068,0.00049,120]
[355711639,1741495841102,-815.6068,0.00049,120]
[355711640,1741495841112,-815.6068,0.00049,120]
[355711641,1741495841122,-815.6068,0.00049,120]
[355711642,1741495841132,-151.0,0.00049,120]
[355711643,1741495841142,-151.0,0.00049,120]
[355711644,1741495841152,-151.0,0.00049,120]
[355711646,1741495841162,-151.0,0.00049,120]
[355711648,1741495841172,-151.0,0.00049,120]
[355711650,1741495841183,-151.0,0.00049,120]
[355711652,1741495841194,-1053.954777,0.00049,120]
[355711654,1741495841206,-1053.954777,0.00049,120]
[355711656,1741495841216,-1053.954777,0.00049,120]
[355711657,1741495841226,-1053.954777,0.00049,120]
[355711659,1741495841235,-1053.954777,0.00049,120]
[355711661,1741495841244,-1053.954777,0.00049,120]
[355711663,1741495841254,-151.0,0.00049,120]
[355711664,1741495841264,-294.13163,0.00049,120]
[355711667,1741495841274,-444.05478,0.00049,120]
[355711668,1741495841284,-444.05478,0.00049,120]
[355711670,1741495841294,-444.05478,0.00049,120]
[355711672,1741495841303,-444.05478,0.00049,120]
[355711674,1741495841313,-444.05478,0.00049,120]
[355711676,1741495841322,-444.05478,0.00049,120]
[355711678,1741495841331,-151.0,0.00049,120]
[355711680,1741495841341,-151.0,0.00049,120]
[355711682,1741495841350,-151.0,0.00049,120]
[355711684,1741495841359,-151.0,0.00049,120]
[355711686,1741495841370,-151.0,0.00049,120]
[355711688,1741495841379,-152.572419,0.00049,120]
[355711690,1741495841388,-843.570749,0.00049,120]
[355711692,1741495841398,-843.570749,0.00049,120]
[355711694,1741495841407,-843.570749,0.00049,120]
[355711696,1741495841416,-843.570749,0.00049,120]
[355711698,1741495841426,-843.570749,0.00049,120]
[355711700,1741495841435,-843.570749,0.00049,120]
[355711702,1741495841445,-153.550886,0.00049,120]
[355711704,1741495841454,-151.0,0.00049,120]
[355711705,1741495841464,-151.0,0.00049,120]
[355711707,1741495841473,-151.0,0.00049,120]
[355711709,1741495841482,-151.0,0.00049,120]
[355711711,1741495841492,-151.0,0.00049,120]
[355711713,1741495841501,-151.0,0.00049,120]
[355711715,1741495841510,-151.0,0.00049,120]
[355711717,1741495841519,-151.0,0.00049,120]
[355711719,1741495841529,-151.0,0.00049,120]
[355711721,1741495841539,-403.288954,0.00049,120]
[355711723,1741495841550,-403.288954,0.00049,120]
[355711724,1741495841562,-403.288954,0.00049,120]
[355711726,1741495841576,-1872.61571,0.00049,120]
[355711728,1741495841587,-403.288954,0.00049,120]
[355711732,1741495841608,-403.288954,0.00049,120]
[355711734,1741495841619,-403.288954,0.00049,120]
[355711736,1741495841629,-1872.61571,0.00049,120]
[355711737,1741495841639,-151.0,0.00049,120]
[355711740,1741495841649,-151.0,0.00049,120]
[355711742,1741495841659,-154.02273,0.00049,120]
[355711744,1741495841670,-11423.0,0.00049,120]
[355711746,1741495841681,-185.427371,0.00049,120]
[355711748,1741495841691,-185.427371,0.00049,120]
[355711750,1741495841701,-151.0,0.00049,120]
[355711752,1741495841711,-151.0,0.00049,120]
[355711754,1741495841721,-151.0,0.00049,120]
[355711756,1741495841731,-151.0,0.00049,120]
[355711758,1741495841741,-539.903212,0.00049,120]
[355711760,1741495841751,-539.903212,0.00049,120]
[355711762,1741495841761,-151.0,0.00049,120]
[355711764,1741495841770,-151.0,0.00049,120]
[355711766,1741495841781,-281.856961,0.00049,120]
[355711768,1741495841792,-281.856961,0.00049,120]
[355711770,1741495841802,-641.450401,0.00049,120]
[355711772,1741495841811,-641.450401,0.00049,120]
[355711774,1741495841822,-160.0,0.00049012,4]
[355711776,1741495841831,-167.900701,0.00049053,2]
[355711778,1741495841841,-500.0,0.00049054,100]
[355711780,1741495841851,-154.86,0.000491,45]
[355711782,1741495841861,-154.86,0.000491,45]
[355711784,1741495841871,-552.14,0.00049154,100]
[355711786,1741495841880,-200.0,0.000492,120]
[355711788,1741495841890,-151.0,0.000492,120]
[355711790,1741495841900,-1000.0,0.00049211,6]
[355711792,1741495841909,-649.1209048,0.00049234,120]
[355711794,1741495841920,-151.0,0.00049285,120]
[355711796,1741495841930,-409.53,0.000493,30]
[355711798,1741495841939,-2410.72,0.000493,30]
[355711800,1741495841949,-168.205626,0.000493,120]
[355711802,1741495841959,-151.0,0.00049315,120]
[355711804,1741495841969,-20000.0,0.00049315,60]
[355711806,1741495841979,-1000.0,0.00049348,6]
[355711808,1741495841990,-3101.10930609,0.0004935,2]
[355711810,1741495842000,-3000.0,0.00049382,2]
[355711812,1741495842009,-1000.0,0.00049382,60]
[355711814,1741495842019,-200.0,0.00049442,120]
[355711816,1741495842030,-500.0,0.00049466,2]
[355711818,1741495842039,-150.57,0.00049466,2]
[355711820,1741495842049,-150.57,0.00049466,2]
[355711822,1741495842059,-150.57,0.00049466,2]
[355711824,1741495842069,-150.57,0.00049466,2]
[355711826,1741495842079,-500.0,0.00049473,10]
[355711828,1741495842089,-151.0,0.00049473,120]
[355711830,1741495842098,-151.0,0.00049473,120]
[355711832,1741495842108,-151.0,0.00049473,120]
[355711834,1741495842118,-1872.61571,0.00049473,120]
[355711836,1741495842127,-1872.61571,0.00049473,120]
[355711838,1741495842137,-151.0,0.00049473,120]
[355711840,1741495842147,-185.427371,0.00049473,120]
[355711841,1741495842158,-185.427371,0.00049473,120]
[355711843,1741495842167,-539.903212,0.00049473,120]
[355711845,1741495842178,-539.903212,0.00049473,120]
[355711847,1741495842188,-243.807185,0.00049482,120]
[355711849,1741495842201,-243.807185,0.00049482,120]
[355711851,1741495842215,-243.807185,0.00049482,120]
[355711853,1741495842225,-243.807185,0.00049482,120]
[355711855,1741495842235,-243.807185,0.00049482,120]
[355711857,1741495842245,-243.807185,0.00049482,120]
[355711859,1741495842255,-243.807185,0.00049482,120]
[355711861,1741495842265,-243.807185,0.00049482,120]
[355711863,1741495842276,-151.0,0.00049482,120]
[355711865,1741495842287,-151.0,0.00049482,120]
[355711867,1741495842297,-151.0,0.00049482,120]
[355711869,1741495842307,-151.0,0.00049482,120]
[355711871,1741495842316,-156.141783,0.00049482,120]
[355711873,1741495842326,-151.0,0.00049482,120]
[355711875,1741495842337,-151.0,0.00049482,120]
[355711877,1741495842347,-151.0,0.00049482,120]
[355711879,1741495842356,-151.0,0.00049482,120]
[355711881,1741495842367,-151.0,0.00049482,120]
[355711883,1741495842377,-151.0,0.00049482,120]
[355711885,1741495842387,-151.0,0.00049482,120]
[355711887,1741495842397,-267.947978,0.00049482,120]
[355711889,1741495842407,-151.0,0.00049482,120]
[355711891,1741495842417,-151.0,0.00049482,120]
[355711893,1741495842427,-198.162974,0.00049482,120]
[355711895,1741495842436,-233.451027,0.00049482,120]
[355711897,1741495842446,-233.451027,0.00049482,120]
[355711899,1741495842455,-233.451027,0.00049482,120]
[355711901,1741495842466,-233.451027,0.00049482,120]
[355711903,1741495842475,-233.451027,0.00049482,120]
[355711905,1741495842486,-290.739548,0.00049482,120]
[355711907,1741495842495,-290.739548,0.00049482,120]
[355711909,1741495842505,-290.739548,0.00049482,120]
[355711911,1741495842515,-290.739548,0.00049482,120]
[355711913,1741495842524,-233.451027,0.00049482,120]
[355711915,1741495842534,-233.451027,0.00049482,120]
[355711917,1741495842544,-233.451027,0.00049482,120]
[355711919,1741495842553,-233.451027,0.00049482,120]
[355711921,1741495842563,-233.451027,0.00049482,120]
[355711923,1741495842572,-290.739548,0.00049482,120]
[355711925,1741495842582,-290.739548,0.00049482,120]
[355711927,1741495842592,-290.739548,0.00049482,120]
[355711929,1741495842602,-290.739548,0.00049482,120]
[355711942,1741495842732,-151.0,0.00049482,120]
[355711944,1741495842743,-151.0,0.00049482,120]
[355711946,1741495842753,-151.0,0.00049482,120]
[355711948,1741495842763,-151.0,0.00049482,120]
[355711950,1741495842772,-151.0,0.00049482,120]
[355711952,1741495842783,-441.989868,0.00049482,30]
[355711954,1741495842792,-441.989868,0.00049482,30]
[355711956,1741495842802,-441.989868,0.00049482,30]
[355711958,1741495842812,-441.989868,0.00049482,30]
[355711960,1741495842821,-441.989868,0.00049482,30]
[355711962,1741495842831,-441.989868,0.00049482,30]
[355711964,1741495842840,-441.989868,0.00049482,30]
[355711966,1741495842850,-441.989868,0.00049482,30]
[355711968,1741495842860,-441.989868,0.00049482,30]
[355711970,1741495842869,-441.989868,0.00049482,30]
[355711972,1741495842879,-151.0,0.00049482,120]
[355711974,1741495842889,-151.0,0.00049482,120]
[355711976,1741495842898,-151.0,0.00049482,120]
[355711978,1741495842908,-151.0,0.00049482,120]
[355711980,1741495842917,-152.541252,0.00049482,120]
[355711982,1741495842927,-152.541252,0.00049482,120]
[355711984,1741495842937,-152.541252,0.00049482,120]
[355711986,1741495842947,-152.541252,0.00049482,120]
[355711988,1741495842957,-152.541252,0.00049482,120]
[355711989,1741495842966,-152.541252,0.00049482,120]
[355711991,1741495842975,-152.541252,0.00049482,120]
[355711993,1741495842985,-152.541252,0.00049482,120]
[355711995,1741495842995,-152.541252,0.00049482,120]
[355711997,1741495843005,-152.541252,0.00049482,120]
[355711999,1741495843014,-151.0,0.00049482,120]
[355712001,1741495843024,-236.397292,0.00049482,120]
[355712003,1741495843033,-359.546202,0.00049482,120]
[355712005,1741495843043,-359.546202,0.00049482,120]
[355712007,1741495843053,-359.546202,0.00049482,120]
[355712009,1741495843063,-359.546202,0.00049482,120]
[355712013,1741495843072,-359.546202,0.00049482,120]
[355712016,1741495843082,-815.6068,0.00049482,120]
[355712019,1741495843091,-815.6068,0.00049482,120]
[355712021,1741495843100,-815.6068,0.00049482,120]
[355712023,1741495843110,-815.6068,0.00049482,120]
[355712025,1741495843119,-815.6068,0.00049482,120]
[355712027,1741495843129,-815.6068,0.00049482,120]
[355712029,1741495843138,-815.6068,0.00049482,120]
[355712031,1741495843148,-815.6068,0.00049482,120]
[355712033,1741495843158,-815.6068,0.00049482,120]
[355712035,1741495843167,-815.6068,0.00049482,120]
[355712037,1741495843177,-151.0,0.00049482,120]
[355712040,1741495843186,-151.0,0.00049482,120]
[355712044,1741495843200,-151.0,0.00049482,120]
[355712048,1741495843210,-151.0,0.00049482,120]
[355712053,1741495843219,-151.0,0.00049482,120]
[355712057,1741495843229,-151.0,0.00049482,120]
[355712061,1741495843239,-278.660995,0.00049482,120]
[355712063,1741495843248,-1053.954777,0.00049482,120]
[355712065,1741495843258,-1053.954777,0.00049482,120]
[355712067,1741495843267,-1053.954777,0.00049482,120]
[355712069,1741495843278,-1053.954777,0.00049482,120]
[355712071,1741495843287,-1053.954777,0.00049482,120]
[355712073,1741495843297,-1053.954777,0.00049482,120]
[355712075,1741495843307,-1053.954777,0.00049482,120]
[355712077,1741495843316,-1053.954777,0.00049482,120]
[355712079,1741495843326,-1053.954777,0.00049482,120]
[355712081,1741495843335,-1053.954777,0.00049482,120]
[355712083,1741495843345,-151.0,0.00049482,120]
[355712085,1741495843355,-151.0,0.00049482,120]
[355712087,1741495843364,-261.625288,0.00049482,120]
[355712089,1741495843374,-444.05478,0.00049482,120]
[355712091,1741495843383,-444.05478,0.00049482,120]
[355712093,1741495843392,-444.05478,0.00049482,120]
[355712094,1741495843401,-444.05478,0.00049482,120]
[355712096,1741495843411,-444.05478,0.00049482,120]
[355712098,1741495843421,-444.05478,0.00049482,120]
[355712100,1741495843431,-444.05478,0.00049482,120]
[355712102,1741495843440,-444.05478,0.00049482,120]
[355712104,1741495843450,-444.05478,0.00049482,120]
[355712106,1741495843459,-444.05478,0.00049482,120]
[355712108,1741495843469,-151.0,0.00049482,120]
[355712110,1741495843478,-238.701348,0.00049482,120]
[355712112,1741495843488,-843.570749,0.00049482,120]
[355712114,1741495843498,-843.570749,0.00049482,120]
[355712116,1741495843507,-843.570749,0.00049482,120]
[355712118,1741495843517,-843.570749,0.00049482,120]
[355712120,1741495843526,-843.570749,0.00049482,120]
[355712122,1741495843536,-843.570749,0.00049482,120]
[355712124,1741495843545,-843.570749,0.00049482,120]
[355712126,1741495843555,-843.570749,0.00049482,120]
[355712128,1741495843564,-843.570749,0.00049482,120]
[355712130,1741495843574,-843.570749,0.00049482,120]
[355712132,1741495843583,-151.0,0.00049482,120]
[355712134,1741495843593,-212.555042,0.00049482,120]
[355712136,1741495843603,-243.315573,0.00049482,120]
[355712138,1741495843612,-243.315573,0.00049482,120]
[355712140,1741495843621,-243.315573,0.00049482,120]
[355712142,1741495843631,-243.315573,0.00049482,120]
[355712144,1741495843640,-243.315573,0.00049482,120]
[355712146,1741495843649,-243.315573,0.00049482,120]
[355712148,1741495843659,-243.315573,0.00049482,120]
[355712150,1741495843668,-243.315573,0.00049482,120]
[355712151,1741495843677,-243.315573,0.00049482,120]
[355712158,1741495843697,-243.315573,0.00049482,120]
[355712161,1741495843708,-151.0,0.00049482,120]
[355712163,1741495843717,-151.0,0.00049482,120]
[355712165,1741495843727,-151.0,0.00049482,120]
[355712167,1741495843737,-151.0,0.00049482,120]
[355712169,1741495843748,-152.462975,0.00049482,120]
[355712171,1741495843758,-151.0,0.00049482,120]
[355712173,1741495843768,-151.0,0.00049482,120]
[355712175,1741495843778,-151.0,0.00049482,120]
[355712177,1741495843788,-151.0,0.00049482,120]
[355712179,1741495843798,-151.0,0.00049482,120]
[355712181,1741495843808,-151.0,0.00049482,120]
[355712183,1741495843818,-166.480911,0.00049482,120]
[355712185,1741495843828,-403.288954,0.00049482,120]
[355712187,1741495843838,-403.288954,0.00049482,120]
[355712189,1741495843848,-403.288954,0.00049482,120]
[355712191,1741495843857,-403.288954,0.00049482,120]
[355712193,1741495843867,-403.288954,0.00049482,120]
[355712195,1741495843877,-1872.61571,0.00049482,120]
[355712197,1741495843887,-1872.61571,0.00049482,120]
[355712199,1741495843896,-1872.61571,0.00049482,120]
[355712201,1741495843906,-1872.61571,0.00049482,120]
[355712203,1741495843915,-403.288954,0.00049482,120]
[355712205,1741495843925,-403.288954,0.00049482,120]
[355712207,1741495843935,-403.288954,0.00049482,120]
[355712209,1741495843944,-403.288954,0.00049482,120]
[355712211,1741495843954,-403.288954,0.00049482,120]
[355712213,1741495843963,-1872.61571,0.00049482,120]
[355712215,1741495843973,-1872.61571,0.00049482,120]
[355712217,1741495843983,-1872.61571,0.00049482,120]
[355712219,1741495843992,-1872.61571,0.00049482,120]
[355712221,1741495844002,-151.0,0.00049482,120]
[355712223,1741495844011,-151.0,0.00049482,120]
[355712225,1741495844021,-151.0,0.00049482,120]
[355712227,1741495844031,-151.0,0.00049482,120]
[355712229,1741495844041,-151.0,0.00049482,120]
[355712231,1741495844051,-151.0,0.00049482,120]
[355712233,1741495844061,-151.0,0.00049482,120]
[355712235,1741495844070,-185.427371,0.00049482,120]
[355712237,1741495844080,-185.427371,0.00049482,120]
[355712239,1741495844090,-185.427371,0.00049482,120]
[355712241,1741495844100,-185.427371,0.00049482,120]
[355712243,1741495844110,-185.427371,0.00049482,120]
[355712245,1741495844119,-185.427371,0.00049482,120]
[355712247,1741495844129,-185.427371,0.00049482,120]
[355712249,1741495844139,-185.427371,0.00049482,120]